{"text_format":"1","workbook":"xlsx","n_sheets":6,"sheets":["Основне","Особисті відомості","Відомості про подорож","Готелі та заходи","Оренда автомобіля","Дані для екстрених ситуацій"],"not_rendered":{"charts":0,"images":19,"macros":0,"external_links":0,"defined_names":10,"comments":0,"pivot_tables":0},"unopened":[],"bounds":{"document_bytes":16777216,"sheet_cells":100000,"rows_first":2000,"rows_last":500,"rows_between":2000,"halvings":0,"cell_chars":16384,"cell_head_chars":4096},"cells_cut":0,"cells_raw":0,"read":"whole","date_system":"1900"}

{"sheet":"Основне","index":0,"n_rows":34,"n_cols":22,"rows_kept":34,"cut":false,"hidden":false,"merged":[[33,21,33,23],[32,21,32,23],[32,16,32,18],[33,16,33,18],[32,1,32,3],[33,1,33,3],[32,6,32,8],[33,6,33,8],[32,11,32,13],[33,11,33,13]]}
[]
[]
[]
[]
[]
[]
[]
[]
[]
[]
[]
[]
[]
[]
[]
[]
[]
[]
[]
[]
[]
[]
[]
[]
[]
[]
[]
[]
[]
[]
[]
[]
[null,{"$f":"Запис_особисті_відомості/Обчислення_особисті_відомості","v":1},null,null,null,null,{"$f":"Запис_подорож/Обчислення_подорож","v":0.65},null,null,null,null,{"$f":"Запис_готель/Обчислення_готель","v":0.53846153846153844},null,null,null,null,{"$f":"IF( 'Оренда автомобіля'!D4=\"Так\",Запис_оренда_автомобіля/Обчислення_оренда_автомобіля,1)","v":0.2857142857142857},null,null,null,null,{"$f":"Запис_непередбачувана_ситуація/Обчислення_непередбачувана_ситуація","v":0.625}]
[null,{"$f":"TEXT(B33,\"0% \"\"готово\"\"\")","v":"100% готово"},null,null,null,null,{"$f":"TEXT(G33,\"0% \"\"готово\"\"\")","v":"65% готово"},null,null,null,null,{"$f":"TEXT(L33,\"0% \"\"готово\"\"\")","v":"54% готово"},null,null,null,null,{"$f":"TEXT(Q33,\"0% \"\"готово\"\"\")","v":"29% готово"},null,null,null,null,{"$f":"TEXT(V33,\"0% \"\"готово\"\"\")","v":"63% готово"}]

{"sheet":"Особисті відомості","index":1,"n_rows":11,"n_cols":5,"rows_kept":11,"cut":false,"hidden":false,"merged":[[17,1,17,4],[4,3,5,3],[7,3,8,3],[7,4,8,4],[4,4,5,4],[4,2,5,2],[7,2,8,2]]}
[]
[]
[{"$f":"IF(COUNTA(B4:B8)<1,\"*\",\"\")","v":""},"Повні імена і псевдоніми",{"$f":"IF(E3=\"\",1,\"\")","v":""},"Домашня адреса","01234, Севастополь, вул. Північна, 77"]
[null,"Михайло Олександров"]
[null,"Іванна Олещенко",{"$f":"IF(E5=\"\",1,\"\")","v":""},"Домашній телефон",3455550123]
[null,"Климчук Віталій"]
[]
[null,null,{"$f":"IF((E8=0)+(E8=\"\"),1,\"\")","v":""},"Мобільні телефони",3455550124]
[]
[]
[{"$f":"Запис_особисті_відомості","v":3},{"$f":"IF(A11<>Обчислення_особисті_відомості,\"Важливі відомості відсутні\",\"Важливі відомості заповнено\")","v":"Важливі відомості заповнено"}]

{"sheet":"Відомості про подорож","index":2,"n_rows":18,"n_cols":6,"rows_kept":18,"cut":false,"hidden":false,"merged":[[23,1,23,5]]}
[]
[]
[null,"Відомості щодо відправлення",null,null,"Відомості про повернення"]
[{"$f":"IF(C4=\"\",1,\"\")","v":""},"Дата",{"$f":"TODAY()+45","v":"2013-02-21"},{"$f":"IF(F4=\"\",1,\"\")","v":""},"Дата",{"$f":"TODAY()+51","v":"2013-02-27"}]
[{"$f":"IF(C5=\"\",1,\"\")","v":""},"Авіакомпанія","Авіакомпанія «Скіф»","","Авіакомпанія","Авіакомпанія «Скіф»"]
[{"$f":"IF(C6=\"\",1,\"\")","v":""},"Номер рейсу","WS192",1,"Номер рейсу"]
[{"$f":"IF(C7=\"\",1,\"\")","v":""},"Звідки","Севастополь","","Звідки","Суми"]
[{"$f":"IF(C8=\"\",1,\"\")","v":""},"Час відправлення","12:30:00",1,"Час відправлення"]
[null,"Термінал або гейт відправлення",null,1,"Термінал або гейт відправлення"]
[{"$f":"IF(C10=\"\",1,\"\")","v":""},"Куди","Суми",1,"Куди"]
[{"$f":"IF(C11=\"\",1,\"\")","v":""},"Час прибуття","12:32:00",1,"Час прибуття"]
[null,"Тривалість польоту","6 годин",null,"Тривалість польоту"]
[{"$f":"IF(C13=\"\",1,\"\")","v":""},"Номери місць","A1, A2,A3",{"$f":"IF(F13=\"\",1,\"\")","v":1},"Номери місць"]
[{"$f":"IF(C14=\"\",1,\"\")","v":""},"Коди підтвердження","Той самий",{"$f":"IF(F14=\"\",1,\"\")","v":1},"Коди підтвердження"]
[{"$f":"IF(C15=\"\",1,\"\")","v":""},"Харчування","Без обмежень",null,"Харчування"]
[null,"Номер телефону авіакомпанії",1235550234,null,"Номер телефону авіакомпанії",1235550234]
[]
[{"$f":"Запис_подорож","v":13},{"$f":"IF(A18<>Обчислення_подорож,\"Важливі відомості відсутні\",\"Важливі відомості заповнено\")","v":"Важливі відомості відсутні"}]

{"sheet":"Готелі та заходи","index":3,"n_rows":15,"n_cols":7,"rows_kept":15,"cut":false,"hidden":false,"merged":[[21,1,21,6]]}
[]
[]
[null,"Відомості про готель/умови проживання",null,null,null,"Відомості про заходи під час відпустки"]
[{"$f":"IF(C4=\"\",1,\"\")","v":""},"Дата бронювання",{"$f":"TODAY()+45","v":"2013-02-21"},null,null,"Захід 1","Катання на лижах"]
["","Назва готелю","Типографія «Шрифт»",null,{"$f":"IF(AND($G$4<>\"\",G5=\"\"),1,\"\")","v":1},"Дата й час"]
["","Адреса готелю","вул. Головна, 89",null,{"$f":"IF(AND($G$4<>\"\",G6=\"\"),1,\"\")","v":1},"Дата бронювання"]
["","Номер телефону готелю","Суми",null,{"$f":"IF(AND($G$4<>\"\",G7=\"\"),1,\"\")","v":1},"Код підтвердження"]
["","Дата й час реєстрації",{"$f":"TODAY()+45.5","v":"2013-02-21T12:00:00"},null,null,"Захід 2","Завод вин"]
["","Дата й час виїзду",{"$f":"TODAY()+50.5","v":"2013-02-26T12:00:00"},null,{"$f":"IF(AND($G$8<>\"\",G9=\"\"),1,\"\")","v":1},"Дата й час"]
["","Код підтвердження","CJ1234567",null,{"$f":"IF(AND($G$8<>\"\",G10=\"\"),1,\"\")","v":1},"Дата бронювання"]
[null,null,null,null,{"$f":"IF(AND($G$8<>\"\",G11=\"\"),1,\"\")","v":1},"Код підтвердження"]
[{"$f":"Запис_готель","v":7},{"$f":"IF(A12<>Обчислення_готель,\"Важливі відомості відсутні\",\"Важливі відомості заповнено\")","v":"Важливі відомості відсутні"},null,null,null,"Захід 3"]
[null,null,null,null,{"$f":"IF(AND($G$12<>\"\",G13=\"\"),1,\"\")","v":""},"Дата й час"]
[null,null,null,null,{"$f":"IF(AND($G$12<>\"\",G14=\"\"),1,\"\")","v":""},"Дата бронювання"]
[null,null,null,null,{"$f":"IF(AND($G$12<>\"\",G15=\"\"),1,\"\")","v":""},"Код підтвердження"]

{"sheet":"Оренда автомобіля","index":4,"n_rows":13,"n_cols":4,"rows_kept":13,"cut":false,"hidden":false,"merged":[[18,0,18,4]]}
[]
[]
[null,null,"Відомості про оренду автомобіля"]
[null,null,"Орендуєте автомобіль?","Так"]
[null,{"$f":"IF(AND($D$4=\"Так\",D5=\"\"),1,\"\")","v":""},"Дата бронювання",{"$f":"TODAY()+45","v":"2013-02-21"}]
[null,1,"Компанія з прокату авто"]
[null,1,"Дата й час прокату авто"]
[null,1,"Дата й час повернення авто"]
[null,1,"Код підтвердження"]
[null,"","Тип транспортного засобу","Економ-клас"]
[null,1,"Номер телефону"]
[]
[null,{"$f":"Запис_оренда_автомобіля","v":2},{"$f":"IF(B13<>Обчислення_оренда_автомобіля,\"Важливі відомості відсутні\",\"Важливі відомості заповнено\")","v":"Важливі відомості відсутні"}]

{"sheet":"Дані для екстрених ситуацій","index":5,"n_rows":11,"n_cols":6,"rows_kept":11,"cut":false,"hidden":false,"merged":[[16,1,16,6],[7,6,8,6],[5,6,6,6],[3,6,4,6],[3,4,4,4],[5,4,6,4],[3,5,4,5],[5,5,6,5],[7,5,8,5]]}
[]
[]
[null,"Відомості про страхування",null,null,null,"Відомості на випадок екстрених ситуацій"]
[{"$f":"IF(C4=\"\",1,\"\")","v":""},"Страхова компанія","Страхова компанія «Імпакт»",null,{"$f":"IF(G4=\"\",1,\"\")","v":1},"Ім’я / Посада / Телефон"]
["","Номер телефону",1235550567]
["","Тип страховки","1900-01-05",null,{"$f":"IF(G6=\"\",1,\"\")","v":1},"Ім’я / Посада / Телефон"]
["","Код підтвердження","1900-01-05"]
["","Дата придбання",{"$f":"TODAY()","v":"2013-01-07"},null,null,"Ім’я / Посада / Телефон"]
[1,"Строк дії страховки"]
[]
[{"$f":"Запис_непередбачувана_ситуація","v":5},{"$f":"IF(A11<>Обчислення_непередбачувана_ситуація,\"Важливі відомості відсутні\",\"Важливі відомості заповнено\")","v":"Важливі відомості відсутні"}]